bitfinex/quotes_SOLUSD_20251013
["timestamp","ask_amount","ask_price","bid_price","bid_amount"]
[1760363080255,10.85250699,194.78,194.73,38.9735208]
[1760363080552,10.85250699,194.78,194.73,0.2]
[1760363080961,10.85250699,194.78,194.75,8.45880419]
[1760363081162,10.85250699,194.78,194.77,8.45880419]
[1760363081370,10.85250699,194.78,194.77,9.15880419]
[1760363081579,10.85250699,194.78,194.77,8.45880419]
[1760363081872,10.85250699,194.78,194.76,8.45880419]
[1760363082049,0.09250699,194.78,194.77,0.7]
[1760363082251,10.83250699,194.78,194.77,0.7]
[1760363082458,0.10441803,194.79,194.77,0.7]
[1760363082459,1e-08,194.79,194.78,20.8]
[1760363082655,0.09752896,194.81,194.78,35.09280152]
[1760363082961,1e-08,194.83,194.82,20.8]
[1760363083279,10.74,194.96,194.82,8.45880419]
[1760363083454,10.74,194.96,194.9,8.45880419]
[1760363083654,11.43,194.96,194.9,8.45880419]
[1760363083965,0.69,194.95,194.88,8.45880419]
[1760363084169,0.69,194.94,194.81,20.8]
[1760363084473,0.69,194.94,194.86,8.45880419]
[1760363084678,14.27885087,194.93,194.85,8.45880419]
[1760363084882,0.69,194.93,194.87,8.45880419]
[1760363085086,10.74,194.96,194.91,8.45880419]
[1760363085260,9.14880419,194.92,194.73,0.2]
[1760363085581,8.45880419,194.84,194.77,8.45880419]
[1760363085788,8.45880419,194.85,194.77,8.45880419]
[1760363085959,10.74,194.84,194.75,0.7]
[1760363086152,10.74,194.84,194.78,8.45880419]
[1760363086472,0.69,194.89,194.76,0.7]
[1760363086679,15.87136288,194.88,194.82,8.45880419]
[1760363087258,10.74,194.88,194.82,8.45880419]
[1760363087574,5.82111389,194.89,194.84,8.45880419]
[1760363087775,8.45880419,194.87,194.77,5.13426092]
[1760363087952,0.66,194.86,194.77,5.13426092]
[1760363088356,0.66,194.86,194.81,8.45880419]
[1760363088556,5.13241634,194.84,194.79,8.45880419]
[1760363088753,0.66,194.88,194.81,8.45880419]
[1760363088977,8.45880419,194.86,194.77,8.45880419]
[1760363089168,11.4,194.85,194.77,8.45880419]
[1760363089481,11.4,194.85,194.8,8.45880419]
[1760363089677,10.74,194.85,194.82,8.45880419]
[1760363089870,0.66,194.88,194.83,8.45880419]
[1760363090178,10.74,194.87,194.77,0.69]
[1760363090493,10.74,194.87,194.81,8.45880419]
[1760363090789,14.25069375,194.86,194.73,6.02530312]
[1760363090961,5.13186081,194.87,194.73,0.2]
[1760363091284,10.74,194.86,194.79,8.45880419]
[1760363091879,0.66,194.85,194.79,8.45880419]
[1760363092190,10.74,194.84,194.83,8.45880419]
[1760363092487,0.66,194.89,194.78,0.69]
[1760363092788,11.4,194.93,194.78,0.69]
[1760363092998,19.85880419,194.93,194.85,8.45880419]
[1760363093400,11.4,194.93,194.86,8.45880419]
[1760363093682,8.45880419,194.9,194.82,8.45880419]
[1760363093887,0.66,194.89,194.82,8.45880419]
[1760363094180,10.74,194.88,194.84,8.45880419]
[1760363094371,9.11880419,194.92,194.84,8.45880419]
[1760363094372,10.74,194.89,194.84,8.45880419]
[1760363094678,0.66,194.89,194.85,5.13215293]
[1760363094884,0.66,194.88,194.81,8.45880419]
[1760363095267,0.66,194.88,194.78,20.8]
[1760363095469,5.90262537,194.86,194.77,5.90262537]
[1760363095653,0.66,194.85,194.77,5.90262537]
[1760363095858,10.74,194.84,194.77,5.90262537]
[1760363096457,10.74,194.84,194.77,0.69]
[1760363096762,11.4,194.85,194.77,12.83523005]
[1760363096961,11.4,194.85,194.8,5.90262537]
[1760363097162,10.74,194.85,194.82,5.90262537]
[1760363097380,6.56262537,194.92,194.84,5.90262537]
[1760363097582,10.72,194.91,194.85,5.90262537]
[1760363097785,0.66,194.92,194.82,0.69]
[1760363097963,0.66,194.95,194.89,5.90262537]
[1760363098167,3.33806215,194.99,194.9,5.90262537]
[1760363098383,5.90262537,194.94,194.83,20.8]
[1760363098583,10.72,194.93,194.87,5.90262537]
[1760363098866,10.72,194.93,194.9,5.90262537]
[1760363099283,0.10183035,194.91,194.9,5.90262537]
[1760363099472,0.10183035,194.91,194.9,8.44169376]
[1760363099668,0.10183035,194.91,194.87,20.8]
[1760363099873,0.10183035,194.91,194.9,8.44169376]
[1760363100273,0.10183035,194.91,194.72,19.99999999]
[1760363100274,19.92352411,194.91,194.72,19.99999999]
[1760363100487,19.92352411,194.91,194.88,8.44169376]
[1760363100488,10.82183035,194.91,194.88,8.44169376]
[1760363100787,0.10183035,194.91,194.89,8.44169376]
[1760363100998,0.10183035,194.91,194.9,9.13169376]
[1760363101366,0.09605186,195.0,194.92,20.8]
[1760363101668,19.99999999,195.15,195.0,20.8]
[1760363101669,0.66,195.13,195.0,20.8]
[1760363101883,9.10169376,195.1,194.96,0.54]
[1760363102063,10.72,195.08,195.04,8.44169376]
[1760363102263,8.44169376,195.09,194.99,0.19385524]
[1760363102562,0.66,195.04,194.97,8.44169376]
[1760363102761,13.57042179,194.99,194.92,8.44169376]
[1760363103070,8.44169376,194.93,194.81,0.19451273]
[1760363103280,8.44169376,194.86,194.79,8.44169376]
[1760363103485,10.72,194.85,194.82,8.44169376]
[1760363103789,20.8,194.8,194.71,0.19447278]
[1760363103989,0.66,194.84,194.66,0.39521481]
[1760363104195,0.66,194.84,194.77,8.44169376]
[1760363104492,10.72,194.86,194.82,8.44169376]
[1760363104699,17.94989834,194.99,194.85,8.44169376]
[1760363104887,0.66,194.96,194.86,0.21481779]
[1760363105092,0.66,194.96,194.73,0.2]
[1760363105093,8.44169376,194.91,194.8,5.13347022]
[1760363105278,0.66,194.9,194.86,8.44169376]
[1760363105480,0.66,194.96,194.89,8.44169376]
[1760363105668,0.66,194.96,194.9,0.51308361]
[1760363105863,0.66,194.96,194.91,8.44169376]
[1760363106083,0.66,195.02,194.95,8.44169376]
[1760363106393,100.0,195.05,195.01,8.44169376]
[1760363106697,100.0,195.05,195.02,8.95446168]
[1760363106899,100.0,195.05,195.04,8.44169376]
[1760363107068,68.3828389,195.05,195.04,10.87647521]
[1760363107274,40.2023792,195.05,195.04,19.83083174]
[1760363107579,0.1,195.12,195.04,19.83083174]
[1760363107784,0.1,195.19,195.18,8.44169376]
[1760363108092,0.1,195.19,195.15,0.51237379]
[1760363108299,0.1,195.19,195.18,8.44169376]
[1760363108471,0.1,195.19,195.18,8.95398879]
[1760363108668,0.1,195.19,195.18,40.630464]
[1760363108891,50.0,195.25,195.19,10.87647521]
[1760363109082,50.0,195.25,195.18,34.87746455]
[1760363109083,50.0,195.25,195.2,11.38871775]
[1760363109275,50.0,195.25,195.24,8.44169376]
[1760363109485,50.0,195.25,195.24,19.31816897]
[1760363109780,50.0,195.25,195.22,0.51219006]
[1760363110087,50.0,195.25,195.24,8.44169376]
[1760363110290,55.78168413,195.25,195.2,0.51221635]
[1760363110484,55.78168413,195.25,195.23,8.44169376]
[1760363110485,50.0,195.25,195.23,8.44169376]
[1760363110674,50.0,195.25,195.16,31.67647521]
[1760363110675,50.0,195.25,195.24,19.31816897]
[1760363110881,50.0,195.25,195.24,24.95206856]
[1760363111086,50.0,195.25,195.24,19.83016732]
[1760363112077,50.0,195.25,195.24,24.95206856]
[1760363112593,0.1,195.31,195.28,31.67647521]
[1760363112768,0.1,195.31,195.3,24.43849667]
[1760363112970,0.1,195.31,195.3,45.23849667]
[1760363113200,0.1,195.31,195.29,0.51186726]
[1760363113375,0.66,195.3,195.22,10.87647521]
[1760363113575,0.66,195.3,195.22,11.3887178]
[1760363113780,0.1,195.31,195.29,8.44169376]
[1760363113980,0.1,195.31,195.22,11.3887178]
[1760363113981,0.1,195.31,195.3,0.51203276]
[1760363114302,0.1,195.31,195.3,8.44169376]
[1760363114599,0.76,195.31,195.29,8.44169376]
[1760363114799,0.66,195.3,195.26,8.44169376]
[1760363115098,0.66,195.29,195.26,8.44169376]
[1760363115304,0.66,195.28,195.24,8.95380518]
[1760363115601,20.8,195.22,194.92,17.91198953]
[1760363115776,8.44169376,195.01,194.92,0.2]
[1760363116100,2.67553592,194.99,194.75,8.44169376]
[1760363116312,8.44169376,194.84,194.76,0.12253631]
[1760363116498,20.8,194.95,194.76,0.12253631]
[1760363116675,8.44169376,194.79,194.76,0.12253631]
[1760363116877,8.44169376,194.79,194.58,19.99999999]
[1760363116878,8.44169376,194.77,194.61,8.44169376]
[1760363117173,8.44169376,194.74,194.63,0.69]
[1760363117374,8.92844202,194.74,194.63,0.69]
[1760363117573,20.28844202,194.74,194.63,5.82786703]
[1760363117773,8.92844202,194.74,194.64,5.13756086]
[1760363117975,0.6416179,194.82,194.73,0.89]
[1760363118201,8.92844202,194.74,194.73,0.2]
[1760363118503,0.66,194.83,194.73,0.2]
[1760363118677,10.7,194.82,194.73,0.2]
[1760363118874,22.10165083,194.81,194.73,0.2]
[1760363119095,20.8,194.79,194.73,0.2]
[1760363119287,20.8,194.72,194.66,0.66201566]
[1760363119512,40.79999999,194.64,194.54,0.46201569]
[1760363119696,20.73636418,194.74,194.54,0.46201569]
[1760363119896,8.92844202,194.58,194.55,0.69]
[1760363120102,0.64214527,194.66,194.56,0.69]
[1760363120301,0.75448271,194.74,194.56,0.69]
[1760363120302,0.66,194.69,194.56,1.15184945]
[1760363120501,0.66,194.69,194.56,0.46184945]
[1760363120825,10.7,194.68,194.56,0.46184945]
[1760363120990,20.8,194.54,194.44,0.46184947]
[1760363121195,8.92844202,194.47,194.44,0.46184947]
[1760363121509,8.92844202,194.45,194.43,0.2]
[1760363121889,1.30287183,194.44,194.43,0.2]
[1760363122092,12.00287183,194.44,194.43,0.2]
[1760363122494,25.69450495,194.6,194.43,0.2]
[1760363122495,0.64280571,194.46,194.43,0.2]
[1760363122694,30.38844202,194.45,194.44,0.46386984]
[1760363122919,0.64287183,194.44,194.43,0.2]
[1760363123199,20.8,194.4,194.26,5.1477343]
[1760363123407,8.92844202,194.3,194.24,1.15483397]
[1760363123711,8.92844202,194.42,194.33,10.87647521]
[1760363123911,0.64264048,194.51,194.34,1.15440456]
[1760363124117,49.28,194.47,194.36,19.99999999]
[1760363124311,49.28,194.47,194.44,20.8]
[1760363124500,49.28,194.47,194.46,19.80491723]
[1760363124704,4.82251211,194.47,194.46,20.49491723]
[1760363124893,3.72251211,194.47,194.37,0.46376195]
[1760363125095,13.31095413,194.47,194.38,5.14456219]
[1760363125297,3.72251211,194.47,194.4,8.92844202]
[1760363125610,8.92844202,194.45,194.33,5.14580785]
[1760363125824,8.92844202,194.37,194.32,0.46434121]
[1760363125998,0.66,194.44,194.33,8.92844202]
[1760363126313,8.92844202,194.34,194.2,5.14928127]
[1760363126518,0.66,194.34,194.24,9.39267826]
[1760363126695,8.92844202,194.3,194.24,0.46423624]
[1760363126899,0.64313644,194.36,194.23,2.56780528]
[1760363126900,8.92844202,194.26,194.23,2.56780528]
[1760363127121,9.58844202,194.25,194.23,2.56780528]
[1760363127323,9.58844202,194.24,194.23,2.56780528]
[1760363127714,8.92844202,194.28,194.23,2.56780528]
[1760363127910,8.92844202,194.24,194.23,2.56780528]
[1760363128108,9.58844202,194.24,194.23,2.56780528]
[1760363128420,20.46491723,194.24,194.23,0.40780528]
[1760363128621,51.16491722,194.24,194.23,0.40780528]
[1760363128825,51.16491722,194.24,194.1,0.1]
[1760363128826,31.67647521,194.2,194.1,0.1]
[1760363129029,8.92844202,194.11,194.1,0.1]
[1760363129192,0.64376577,194.17,194.1,0.1]
[1760363129605,8.92844202,194.11,194.1,0.1]
[1760363129801,10.72,194.13,194.1,0.1]
[1760363130018,8.92844202,194.11,194.1,0.1]
[1760363130197,30.52491723,194.11,194.1,0.1]
[1760363130407,8.92844202,194.06,194.01,5.15425781]
[1760363130623,0.64399793,194.1,194.02,1.15557406]
[1760363130820,8.92844202,194.09,194.02,0.69]
[1760363131004,10.72,194.13,194.04,10.87647521]
[1760363131204,0.64373261,194.18,194.07,8.92844202]
[1760363131439,0.64350064,194.25,194.16,10.87647521]
[1760363131611,58.92844202,194.26,194.17,9.39360901]
[1760363131932,50.0,194.26,194.21,29.72844202]
[1760363132131,50.0,194.26,194.18,11.56647521]
[1760363132132,58.92844202,194.26,194.22,0.46504723]
[1760363132431,0.64350064,194.25,194.15,20.8]
[1760363132618,50.0,194.26,194.25,20.8]
[1760363132801,58.92844202,194.26,194.16,0.69]
[1760363133001,58.92844202,194.26,194.15,0.46550959]
[1760363133002,8.92844202,194.21,194.15,0.46550959]
[1760363133196,8.92844202,194.24,194.16,8.92844202]
[1760363133398,49.5,194.26,194.19,20.8]
[1760363133602,49.5,194.26,194.25,8.92844202]
[1760363133827,9.00363358,194.26,194.25,20.49491723]
[1760363134008,0.72,194.3,194.25,10.87647521]
[1760363134207,0.64297104,194.41,194.29,8.92844202]
[1760363134409,0.64297104,194.41,194.24,20.8]
[1760363134410,0.72,194.42,194.36,10.87647521]
[1760363134612,8.92844202,194.41,194.35,21.26426946]
[1760363135112,0.72,194.52,194.43,20.8]
[1760363135328,8.92844202,194.45,194.36,38.80782053]
[1760363135522,0.89891473,194.44,194.36,25.94509158]
[1760363135838,9.64844202,194.44,194.37,0.51403285]
[1760363136131,0.72,194.49,194.43,20.8]
[1760363136299,0.72,194.49,194.44,9.44228981]
[1760363136499,0.72,194.46,194.43,20.8]
[1760363136713,64.44251211,194.47,194.43,20.8]
[1760363136999,64.44251211,194.47,194.46,5.14244574]
[1760363137000,53.72251211,194.47,194.46,5.14244574]
[1760363137607,53.72251211,194.47,194.46,16.53258375]
[1760363137608,8.71479042,194.47,194.46,16.53258375]
[1760363137809,18.36323244,194.47,194.42,20.8]
[1760363138011,0.72,194.46,194.42,25.94350375]
[1760363138319,0.72,194.46,194.39,20.8]
[1760363138320,50.0,194.44,194.39,20.8]
[1760363138517,50.0,194.44,194.42,8.92844202]
[1760363138720,8.71479042,194.47,194.43,11.39079912]
[1760363138911,8.71479042,194.47,194.46,14.07088776]
[1760363139234,9.5419463,194.47,194.38,0.51445621]
[1760363139529,9.5419463,194.47,194.39,10.87647521]
[1760363139736,10.72,194.46,194.41,20.8]
[1760363139906,0.72,194.45,194.41,20.8]
[1760363140114,0.72,194.45,194.4,0.51440329]
[1760363140115,10.72,194.46,194.4,0.51440329]
[1760363140310,20.8,194.43,194.34,5.14562107]
[1760363140544,0.17891473,194.44,194.37,8.92844202]
[1760363140738,0.72,194.43,194.36,0.51445621]
[1760363141036,8.8219463,194.47,194.42,5.14350375]
[1760363141248,8.8219463,194.47,194.42,18.51656057]
[1760363141548,0.09320923,194.48,194.46,10.87647521]
[1760363141841,1e-08,194.53,194.51,10.87647521]
[1760363142038,1e-08,194.53,194.42,28.72226313]
[1760363142039,1e-08,194.53,194.52,20.31900318]
[1760363142424,1e-08,194.53,194.52,11.39056116]
[1760363142640,1e-08,194.53,194.52,20.31900318]
[1760363143014,1e-08,194.53,194.52,5.6549455]
[1760363143326,1e-08,194.53,194.52,14.58338752]
[1760363143526,1e-08,194.65,194.55,20.8]
[1760363143724,1e-08,194.65,194.57,20.8]
[1760363144033,9.62844203,194.65,194.58,0.51392743]
[1760363144241,8.92844202,194.61,194.52,8.92844202]
[1760363144432,0.70000001,194.65,194.53,0.51366342]
[1760363144734,0.7,194.6,194.53,0.51366342]
[1760363144940,9.62844202,194.6,194.48,17.99670916]
[1760363145256,1e-08,194.65,194.57,8.92844202]
[1760363145441,1e-08,194.65,194.58,0.51392743]
[1760363145618,8.92844202,194.6,194.51,20.8]
[1760363145813,0.7,194.62,194.52,0.51408595]
[1760363146018,0.87891473,194.62,194.52,0.51408595]
[1760363146228,0.87891473,194.62,194.53,8.92844202]
[1760363146442,0.7,194.62,194.54,0.5140331]
[1760363146650,0.87891473,194.61,194.5,8.92844202]
[1760363146941,0.17891473,194.6,194.54,5.14033103]
[1760363147144,9.62844202,194.61,194.55,8.92844202]
[1760363147145,0.7,194.61,194.55,8.92844202]
[1760363147318,1e-08,194.65,194.59,8.92844202]
[1760363147517,8.92844202,194.62,194.56,0.51340272]
[1760363147725,0.17891473,194.61,194.54,0.51340986]
[1760363147939,8.92844202,194.6,194.52,0.51340986]
[1760363148118,9.10735675,194.59,194.52,0.51314592]
[1760363148315,9.10735675,194.59,194.51,5.14090928]
[1760363148526,0.7,194.6,194.52,20.31848344]
[1760363148728,8.92844202,194.56,194.5,0.51413881]
[1760363148949,8.92844202,194.52,194.37,18.00689406]
[1760363149153,0.7,194.53,194.45,8.92844202]
[1760363149358,0.17891473,194.57,194.49,8.92844202]
[1760363149665,8.92844202,194.55,194.47,20.8]
[1760363149840,9.10735675,194.55,194.48,0.51419169]
[1760363150038,9.10735675,194.55,194.46,8.92844202]
[1760363150039,8.92844202,194.53,194.46,0.51419176]
[1760363150256,0.17891473,194.53,194.46,9.44263378]
[1760363150469,0.17891473,194.55,194.52,8.92844202]
[1760363150670,1e-08,194.65,194.57,31.67647521]
[1760363150970,1e-08,194.65,194.6,5.13874614]
[1760363151142,1e-08,194.65,194.61,0.5137956]
[1760363151467,8.92844202,194.63,194.55,20.8]
[1760363151761,21.67891473,194.64,194.55,9.4421848]
[1760363151962,9.57844202,194.63,194.55,9.44223638]
[1760363152145,0.17891473,194.62,194.55,0.51379436]
[1760363152340,1e-08,194.65,194.58,8.92844202]
[1760363152569,9.57844203,194.65,194.57,0.51368875]
[1760363152752,8.92844202,194.63,194.57,0.51368875]
[1760363152946,8.92844202,194.63,194.54,8.92844202]
[1760363152947,8.92844202,194.63,194.56,17.9893092]
[1760363153150,1e-08,194.65,194.62,8.92844202]
[1760363153351,1e-08,194.65,194.63,0.51347774]
[1760363154151,1e-08,194.65,194.64,19.80491723]
[1760363154550,1e-08,194.65,194.64,20.31843783]
[1760363155060,1e-08,194.65,194.64,25.45612792]
[1760363155253,1e-08,194.65,194.64,16.5276859]
[1760363155452,0.65000001,194.65,194.64,5.13769009]
[1760363155658,0.65000001,194.65,194.61,5.65233029]
[1760363155875,1e-08,194.65,194.62,8.92844202]
[1760363156083,1e-08,194.65,194.64,19.80491723]
[1760363156372,1e-08,194.65,194.61,18.49848272]
[1760363156555,0.65,194.64,194.6,5.13871544]
[1760363156758,1e-08,194.65,194.63,10.87647521]
[1760363156964,1e-08,194.65,194.64,25.45637631]
[1760363157352,1e-08,194.65,194.64,5.13769009]
[1760363157668,1e-08,194.65,194.64,16.0141653]
[1760363158082,50.65,194.81,194.68,10.87647521]
[1760363158266,50.65,194.81,194.75,8.92844202]
[1760363158460,50.65,194.81,194.77,8.92844202]
[1760363158665,50.0,194.81,194.78,0.51339972]
[1760363159057,0.65,194.8,194.75,0.51345489]
[1760363159258,0.65,194.8,194.73,8.92844202]
[1760363159259,0.74494239,194.79,194.73,8.92844202]
[1760363159482,0.74494239,194.79,194.74,0.51316486]
[1760363159661,0.65,194.78,194.74,0.51316486]
[1760363159852,0.09494239,194.79,194.75,8.92844202]
[1760363160060,0.74494239,194.79,194.76,0.51311217]
[1760363160253,0.82891473,194.78,194.65,0.51311217]
[1760363160481,8.92844202,194.69,194.6,8.92844202]
[1760363160664,8.92844202,194.66,194.54,0.5140331]
[1760363160870,8.92844202,194.64,194.54,0.5140331]
[1760363161179,8.92844202,194.64,194.4,61.84272286]
[1760363161180,8.92844202,194.57,194.46,8.92844202]
[1760363161356,8.92844202,194.53,194.41,0.51424458]
[1760363161558,20.8,194.57,194.49,8.92844202]
[1760363161782,20.8,194.57,194.47,8.92844202]
[1760363161783,9.75735675,194.56,194.47,8.92844202]
[1760363161979,8.92844202,194.54,194.48,0.5139273]
[1760363162186,0.65,194.55,194.38,20.8]
[1760363162358,9.57844202,194.54,194.44,29.72844202]
[1760363162553,0.17891473,194.6,194.55,20.8]
[1760363162782,0.65,194.59,194.56,0.513399]
[1760363163088,0.65,194.64,194.58,17.98746016]
[1760363163253,8.92844202,194.62,194.54,10.87647521]
[1760363163453,8.92844202,194.6,194.53,5.65357515]
[1760363163655,0.65,194.61,194.56,8.92844202]
[1760363164114,9.10735675,194.68,194.57,0.51305992]
[1760363164315,10.87647521,194.74,194.57,0.51305992]
[1760363164316,0.65,194.65,194.59,20.8]
[1760363164614,0.17891473,194.74,194.65,10.87647521]
[1760363164775,8.92844202,194.72,194.66,0.5128227]
[1760363164982,0.65,194.71,194.65,8.92844202]
[1760363165181,0.65,194.77,194.7,8.92844202]
[1760363165380,0.09494239,194.79,194.72,19.80491723]
[1760363165597,0.09494239,194.79,194.73,0.51234865]
[1760363165908,0.65,194.78,194.71,0.5135843]
[1760363166093,0.65,194.78,194.72,0.51334691]
[1760363166406,9.10735675,194.77,194.71,0.51334691]
[1760363166573,0.17891473,194.77,194.71,0.51334691]
[1760363166974,9.57844202,194.76,194.68,0.51334691]
[1760363167206,8.92844202,194.72,194.64,5.13763596]
[1760363167411,0.82891473,194.71,194.64,5.13763596]
[1760363167580,10.74,194.77,194.68,8.92844202]
[1760363167777,0.92385712,194.79,194.74,8.92844202]
[1760363167979,0.92385712,194.79,194.76,8.92844202]
[1760363167980,0.09494239,194.79,194.76,8.92844202]
[1760363168178,0.74494239,194.79,194.75,0.51326494]
[1760363168379,1e-08,194.79,194.78,10.87647521]
[1760363168598,11.98620682,194.81,194.75,0.51292103]
[1760363168781,11.98620682,194.81,194.75,10.87647521]
[1760363169116,8.92844202,194.76,194.65,0.51271033]
[1760363169287,8.92844202,194.67,194.55,0.51271033]
[1760363169488,10.74,194.71,194.63,8.92844202]
[1760363169700,0.82891473,194.7,194.62,8.92844202]
[1760363169904,8.92844202,194.65,194.57,0.51247325]
[1760363170081,0.65,194.64,194.57,0.51247325]
[1760363170413,8.92844202,194.62,194.56,5.13980263]
[1760363170582,8.92844202,194.6,194.54,5.14033103]
[1760363170911,0.17891473,194.64,194.55,0.5120786]
[1760363171115,0.65,194.63,194.56,5.13980263]
[1760363171404,0.82891473,194.62,194.53,18.50385491]
[1760363171610,11.39,194.62,194.56,8.92844202]
[1760363171916,0.17891473,194.7,194.61,31.67647521]
[1760363172103,0.17891473,194.7,194.63,8.92844202]
[1760363172313,0.65,194.69,194.62,0.51163134]
[1760363172789,9.10735675,194.68,194.61,0.51157876]
[1760363172991,10.72,194.67,194.61,0.51157876]
[1760363173504,10.72,194.67,194.6,14.06696237]
[1760363173505,8.92844202,194.63,194.5,0.51157876]
[1760363173810,0.17891473,194.62,194.52,10.87647521]
[1760363174017,50.0,194.63,194.6,8.92844202]
[1760363174194,50.0,194.63,194.62,8.92844202]
[1760363174385,50.0,194.63,194.61,0.51105302]
[1760363174587,0.72,194.7,194.65,20.8]
[1760363174814,8.92844202,194.76,194.66,9.43936377]
[1760363175011,0.17891473,194.8,194.72,8.92844202]
[1760363175187,0.17891473,194.8,194.71,20.8]
[1760363175188,0.83072592,194.82,194.76,8.92844202]
[1760363175381,0.83072592,194.82,194.73,18.48434255]
[1760363175382,0.89891473,194.8,194.73,17.97360447]
[1760363175583,8.92844202,194.78,194.73,5.13531556]
[1760363175786,10.72,194.8,194.74,0.51305686]
[1760363176017,0.72,194.79,194.73,17.97360447]
[1760363176202,8.92844202,194.77,194.73,5.13531556]
[1760363176396,0.89891473,194.76,194.73,5.13531556]
[1760363176598,0.17891473,194.79,194.73,5.13531556]
[1760363176807,0.17891473,194.79,194.59,25.69404197]
[1760363176808,8.92844202,194.77,194.67,0.51322886]
[1760363177013,8.92844202,194.73,194.61,12.84620523]
[1760363177312,11.44,194.72,194.65,8.92844202]
[1760363177521,9.64844202,194.71,194.64,5.13769009]
[1760363177821,9.64844202,194.71,194.61,26.91310066]
[1760363177822,8.92844202,194.69,194.61,26.91310066]
[1760363178003,0.17891473,194.7,194.62,0.51353137]
[1760363178325,11.98620682,194.81,194.73,20.8]
[1760363178484,11.98620682,194.81,194.74,0.51324568]
[1760363178802,11.98620682,194.81,194.78,8.92844202]
[1760363179007,11.98620682,194.81,194.77,29.72844202]
[1760363179231,12.08307383,194.81,194.79,8.92844202]
[1760363179420,12.08307383,194.81,194.8,40.63492189]
[1760363179421,1e-08,194.81,194.8,40.63492189]
[1760363179605,1e-08,194.81,194.8,29.75844668]
[1760363180426,1e-08,194.81,194.8,40.63492189]
[1760363180626,0.09735474,194.88,194.84,20.8]
[1760363180826,0.09735474,194.88,194.78,17.96899065]
[1760363180827,1e-08,194.88,194.87,40.12193962]
[1760363181030,1e-08,194.88,194.85,0.51285072]
[1760363181325,0.72,194.87,194.82,5.13281331]
[1760363181531,0.72,194.87,194.81,20.8]
[1760363181719,0.72,194.87,194.81,38.76614231]
[1760363181917,1e-08,194.88,194.85,20.8]
[1760363182227,1e-08,194.88,194.87,10.87647521]
[1760363182527,1e-08,194.88,194.86,19.32193962]
[1760363183028,1e-08,194.88,194.86,10.87647521]
[1760363183328,1e-08,194.88,194.87,13.57709062]
[1760363183737,1e-08,194.88,194.87,5.13162621]
[1760363184102,0.72000001,194.88,194.86,8.44546441]
[1760363184621,0.72,194.87,194.85,13.57740754]
[1760363184807,0.72,194.86,194.7,5.13610683]
[1760363185012,8.44546442,194.88,194.77,8.44546441]
[1760363185013,11.59891473,194.85,194.77,8.44546441]
[1760363185213,11.59891473,194.85,194.72,12.83894823]
[1760363185214,0.89891473,194.85,194.78,8.44546441]
[1760363185402,0.17891473,194.84,194.76,17.97083589]
[1760363185604,8.44546441,194.79,194.65,17.98099151]
[1760363185823,21.69891473,194.78,194.65,13.58289055]
[1760363186013,11.42,194.77,194.71,8.44546441]
[1760363186215,11.42,194.77,194.64,17.98187363]
[1760363186216,0.89891473,194.76,194.64,17.98187363]
[1760363186508,0.89891473,194.8,194.75,8.44546441]
[1760363186721,0.72,194.8,194.78,8.44546441]
[1760363186923,0.72,194.8,194.73,10.87647521]
[1760363186924,0.72,194.86,194.67,30.69999999]
[1760363187140,0.72,194.86,194.83,5.13267977]
[1760363187344,1e-08,194.88,194.84,8.44546441]
[1760363187540,1e-08,194.88,194.86,8.44546441]
[1760363187727,0.72,194.87,194.83,26.40984361]
[1760363188046,1e-08,194.88,194.83,5.13267977]
[1760363188047,0.72,194.86,194.83,5.13267977]
[1760363188349,0.72,194.85,194.83,5.13267977]
[1760363188550,9.16546441,194.85,194.8,5.13347022]
[1760363188722,0.72,194.84,194.77,8.44546441]
[1760363188926,0.72,194.84,194.79,8.44546441]
[1760363189121,1e-08,194.88,194.84,17.96345719]
[1760363189335,1e-08,194.88,194.84,26.4089216]
[1760363189547,1e-08,194.88,194.87,20.8]
[1760363189752,1e-08,194.88,194.87,31.67647521]
[1760363190256,1e-08,194.88,194.87,40.12193962]
[1760363190622,1e-08,194.88,194.87,31.67647521]
[1760363190829,1e-08,194.88,194.87,40.12193962]
[1760363191251,1e-08,194.88,194.87,45.25356583]
[1760363191632,0.1,195.01,194.91,20.8]